bitfinex/quotes_ETHUSD_20251124
["timestamp","ask_amount","ask_price","bid_price","bid_amount"]
[1763947364163,0.002,2789.6,2789.5,2.778025]
[1763947364739,0.1874578,2791.0,2789.6,0.90699264]
[1763947364982,0.477,2791.3,2790.1,0.1]
[1763947364983,0.33282436,2791.2,2790.1,0.1]
[1763947365483,0.33282436,2791.2,2790.2,0.159]
[1763947365640,0.3854149,2791.5,2790.3,2.313825]
[1763947365968,0.71806955,2791.5,2790.4,6.78300635]
[1763947366149,0.198,2791.5,2790.6,0.1]
[1763947366548,0.1801,2791.8,2790.7,2.213825]
[1763947366748,0.002,2791.9,2791.7,0.4642]
[1763947366948,0.002,2791.9,2791.8,0.4642]
[1763947367149,0.002,2791.9,2791.8,0.5642]
[1763947367455,0.002,2791.9,2791.8,0.4642]
[1763947368272,0.002,2791.9,2791.8,1.0284]
[1763947368472,0.002,2791.9,2791.8,10.15501764]
[1763947368659,0.002,2792.5,2792.1,0.1]
[1763947368887,0.002,2792.5,2792.1,6.91144542]
[1763947369067,0.002,2792.5,2792.4,0.1]
[1763947369380,0.002,2792.5,2792.4,3.68101764]
[1763947370541,0.002,2792.5,2792.4,2.211825]
[1763947371884,0.002,2792.5,2792.4,1.749625]
[1763947374890,0.4891,2792.5,2792.4,1.749625]
[1763947376108,0.002,2792.5,2792.4,1.749625]
[1763947377176,0.9661,2792.5,2792.4,1.749625]
[1763947378523,0.002,2792.5,2792.4,1.749625]
[1763947379677,0.9661,2792.5,2792.4,1.749625]
[1763947380312,0.4891,2792.5,2792.4,1.749625]
[1763947380610,0.002,2792.5,2792.4,1.749625]
[1763947380832,0.9661,2792.5,2792.1,1.749625]
[1763947381011,0.479,2792.5,2792.1,1.749625]
[1763947381319,0.002,2792.5,2792.1,1.749625]
[1763947381531,0.002,2792.5,2792.4,0.4622]
[1763947381684,0.002,2792.5,2792.4,0.73318391]
[1763947382084,0.002,2792.5,2792.4,2.48280891]
[1763947382284,0.002,2792.5,2792.4,9.55082039]
[1763947382488,0.002,2792.5,2792.4,9.51500891]
[1763947382695,0.431,2793.5,2792.7,0.1]
[1763947382898,0.431,2793.5,2792.8,1.749625]
[1763947383111,0.002,2793.1,2792.8,1.749625]
[1763947383299,0.6672,2792.9,2792.8,1.749625]
[1763947383486,0.002,2793.1,2792.6,1.749625]
[1763947383887,0.6672,2792.7,2792.6,1.749625]
[1763947384209,0.6672,2792.7,2792.2,1.749625]
[1763947384527,0.4871,2792.2,2792.1,0.001]
[1763947384935,0.9641,2792.2,2792.1,0.001]
[1763947385235,0.1801,2792.7,2792.1,0.001]
[1763947385236,0.477,2792.6,2792.1,0.001]
[1763947385391,0.1801,2792.7,2792.1,0.001]
[1763947386214,0.1301,2792.7,2792.1,0.001]
[1763947386619,0.1833,2793.0,2792.2,1.749625]
[1763947386792,0.1833,2793.0,2792.3,0.2347025]
[1763947388227,0.002,2793.1,2792.3,0.7311025]
[1763947388410,0.002,2793.1,2792.5,0.1]
[1763947389696,0.002,2793.1,2792.6,8.716025]
[1763947389995,0.002,2793.1,2792.7,9.1012275]
[1763947390402,0.4887,2793.1,2792.7,9.1012275]
[1763947390609,0.4887,2793.1,2792.8,1.749625]
[1763947390805,0.4887,2793.1,2792.9,1.749625]
[1763947391004,0.1833,2793.0,2792.9,1.749625]
[1763947391211,0.6624,2793.0,2792.9,1.749625]
[1763947391406,1.1491,2793.0,2792.9,1.749625]
[1763947393039,1.51719873,2793.0,2792.3,1.749625]
[1763947393210,1.09741787,2792.9,2792.3,1.749625]
[1763947393401,0.4791,2792.4,2792.3,1.749625]
[1763947393730,0.4867,2792.8,2792.2,1.749625]
[1763947393931,0.1833,2793.0,2792.2,1.749625]
[1763947393932,0.4791,2792.4,2792.2,1.749625]
[1763947394100,0.8196478,2792.7,2792.2,1.749625]
[1763947394101,0.2995,2792.3,2792.2,1.749625]
[1763947395508,0.33367618,2792.3,2792.2,1.749625]
[1763947395725,0.82037618,2792.9,2792.2,1.749625]
[1763947395916,0.33367618,2792.8,2792.2,1.749625]
[1763947396115,0.33367618,2792.7,2792.2,1.749625]
[1763947396317,0.002,2793.1,2792.3,2.28183777]
[1763947396639,0.33463276,2793.0,2792.4,1.97780878]
[1763947396815,0.33463276,2792.9,2792.4,1.749625]
[1763947397146,0.33463276,2792.8,2792.4,1.749625]
[1763947397314,0.33463276,2792.7,2792.4,1.749625]
[1763947397520,0.1833,2792.9,2792.4,1.749625]
[1763947397819,0.33471023,2792.8,2792.4,1.749625]
[1763947398019,0.33471023,2792.7,2792.4,1.749625]
[1763947398222,0.1833,2792.9,2792.4,2.5715875]
[1763947398446,0.33474133,2792.8,2792.4,2.5715875]
[1763947398652,0.33474065,2792.7,2792.4,2.5715875]
[1763947398830,0.1833,2792.9,2792.4,2.5715875]
[1763947399143,0.3347407,2792.8,2792.4,2.5715875]
[1763947399322,0.3347407,2792.7,2792.4,2.5715875]
[1763947399526,0.1833,2792.9,2792.4,2.5715875]
[1763947399851,0.3347988,2792.8,2792.5,0.25715875]
[1763947400052,0.3347988,2792.7,2792.5,0.25715875]
[1763947400241,0.002,2793.1,2792.5,0.25715875]
[1763947400551,0.33486883,2793.0,2792.5,0.25715875]
[1763947400749,0.33486883,2792.9,2792.5,0.25715875]
[1763947400951,0.33486883,2792.8,2792.5,0.25715875]
[1763947401253,0.33486883,2792.7,2792.5,0.25715875]
[1763947401426,0.002,2793.0,2792.5,0.25715875]
[1763947401639,0.33492539,2792.9,2792.6,1.749625]
[1763947401834,0.33492539,2792.8,2792.6,1.749625]
[1763947402032,0.81402539,2792.7,2792.6,1.749625]
[1763947402542,1.30072539,2792.7,2792.6,1.749625]
[1763947402720,0.33492539,2792.7,2792.6,1.749625]
[1763947403058,0.33492539,2792.7,2792.6,2.5715875]
[1763947403557,0.33492539,2792.7,2792.6,3.0376875]
[1763947403744,0.33492539,2792.7,2792.6,2.5715875]
[1763947404752,0.33492539,2792.7,2792.4,1.749625]
[1763947404753,1.30072539,2792.7,2792.4,1.749625]
[1763947404956,0.63429381,2792.6,2792.4,1.749625]
[1763947405128,0.63429381,2792.6,2792.3,0.001]
[1763947405129,0.81208002,2792.5,2792.3,0.001]
[1763947405330,0.63598002,2792.4,2792.3,1.750625]
[1763947405533,1.12268002,2792.4,2792.3,1.750625]
[1763947406348,0.7879,2792.4,2792.3,1.750625]
[1763947406557,1.12254309,2792.4,2792.3,0.001]
[1763947408335,0.33464309,2792.4,2792.3,0.001]
[1763947408663,0.33464309,2792.7,2792.3,0.001]
[1763947408871,0.33464309,2792.6,2792.3,0.001]
[1763947409027,0.33464309,2792.7,2792.3,0.001]
[1763947409537,0.1833,2792.9,2792.3,0.001]
[1763947409752,0.33463551,2792.8,2792.3,0.001]
[1763947409942,0.33463551,2792.7,2792.3,0.001]
[1763947410149,0.1833,2792.9,2792.3,0.001]
[1763947410460,0.33465526,2792.8,2792.4,1.749625]
[1763947410659,0.33465526,2792.7,2792.4,1.749625]
[1763947410827,0.33465526,2792.8,2792.4,1.749625]
[1763947411026,0.33465526,2792.8,2792.5,1.7854352]
[1763947411226,0.33471708,2792.9,2792.5,2.246025]
[1763947411464,0.002,2793.0,2792.5,2.4707275]
[1763947411762,0.67,2792.9,2792.5,1.9743275]
[1763947411935,0.5181119,2792.9,2792.5,1.749625]
[1763947412329,0.1833,2792.9,2792.5,1.749625]
[1763947412529,0.33702391,2793.0,2792.5,1.749625]
[1763947413373,0.1833,2792.9,2792.5,1.749625]
[1763947413541,0.4791,2792.6,2792.3,0.001]
[1763947414163,0.67,2792.9,2792.3,0.001]
[1763947414370,0.82192284,2792.8,2792.3,0.001]
[1763947414534,0.4867,2792.8,2792.3,0.001]
[1763947414736,0.4867,2792.7,2792.3,0.001]
[1763947415330,0.1833,2792.9,2792.3,0.001]
[1763947415574,0.33530319,2792.8,2792.3,0.001]
[1763947415933,0.4867,2792.7,2792.3,0.001]
[1763947416132,0.4791,2792.4,2792.3,0.001]
[1763947416564,0.9741,2792.4,2792.3,0.001]
[1763947417872,0.1833,2792.9,2792.3,0.001]
[1763947418078,0.51864131,2792.9,2792.3,0.001]
[1763947418570,0.495,2792.8,2792.3,0.001]
[1763947419659,0.33544479,2792.7,2792.3,0.001]
[1763947420058,0.83044479,2792.7,2792.3,0.001]
[1763947420243,0.495,2792.7,2792.3,0.001]
[1763947420449,0.83053327,2792.6,2792.3,0.001]
[1763947420662,0.495,2792.6,2792.3,0.001]
[1763947420857,0.4972,2792.4,2792.3,0.001]
[1763947422057,0.002,2792.9,2792.3,0.9523]
[1763947422269,0.002,2792.9,2792.4,0.2701925]
[1763947422451,0.002,2792.9,2792.3,0.4943]
[1763947422452,0.4972,2792.4,2792.3,0.001]
[1763947422851,0.9922,2792.4,2792.3,0.001]
[1763947423762,3.48362539,2792.4,2792.3,0.001]
[1763947424094,2.23461803,2792.4,2792.3,0.001]
[1763947424447,2.67367983,2792.4,2792.3,0.001]
[1763947426256,2.70943242,2792.4,2792.3,0.001]
[1763947426755,11.44236142,2792.4,2792.3,0.001]
[1763947426955,11.40660883,2792.4,2792.3,0.001]
[1763947427166,8.59841883,2792.4,2792.3,0.001]
[1763947427885,9.76570683,2792.4,2792.3,0.001]
[1763947428089,8.19253483,2792.4,2792.3,0.001]
[1763947428460,13.92968366,2792.4,2792.3,0.001]
[1763947428663,2.498,2792.0,2791.7,0.001]
[1763947428863,3.06299264,2791.5,2789.8,0.1847]
[1763947429089,0.90699264,2791.1,2789.8,0.1847]
[1763947429256,0.33398872,2791.0,2789.8,0.1847]
[1763947429453,0.33398872,2791.0,2789.0,0.90799264]
[1763947429454,3.06299264,2791.0,2789.0,0.001]
[1763947429804,0.90699264,2790.8,2789.3,0.4758]
[1763947430100,0.33398872,2790.7,2789.3,0.4758]
[1763947430398,0.4507,2790.7,2789.3,0.4758]
[1763947430601,0.90699264,2790.6,2789.0,0.4768]
[1763947430752,0.82753146,2790.5,2789.0,0.4768]
[1763947430954,4.701739,2790.2,2789.0,0.001]
[1763947431159,0.33341181,2790.4,2789.0,0.4768]
[1763947431160,0.4507,2790.4,2789.0,0.4768]
[1763947431397,0.4507,2790.3,2789.0,0.5768]
[1763947432393,0.4507,2790.3,2789.0,0.4768]
[1763947432793,0.90699264,2790.1,2789.0,0.4768]
[1763947432973,0.49041196,2790.0,2789.0,0.4768]
[1763947433174,0.4507,2790.2,2789.0,0.4768]
[1763947434772,0.4507,2790.5,2789.1,1.749625]
[1763947435209,0.4507,2790.5,2789.2,0.4758]
[1763947435905,0.4507,2790.5,2789.3,0.13585128]
[1763947436104,0.1888,2790.9,2789.3,0.13585128]
[1763947436105,0.4507,2790.8,2789.3,0.13585128]
[1763947436314,0.4507,2790.8,2789.5,0.1]
[1763947436625,2.003796,2790.7,2789.5,0.2325425]
[1763947436907,0.90699264,2790.6,2789.4,1.749625]
[1763947437096,0.4507,2790.5,2789.4,1.749625]
[1763947438709,0.4507,2790.5,2789.5,0.4758]
[1763947438887,0.4507,2790.5,2789.5,2.225425]
[1763947439090,0.4507,2790.5,2789.6,0.70019782]
[1763947439407,0.4507,2790.5,2789.6,1.17599782]
[1763947439585,0.03575259,2790.4,2789.5,1.749625]
[1763947439985,0.4507,2790.3,2789.5,1.749625]
[1763947440190,0.03575259,2790.2,2789.5,1.749625]
[1763947440401,0.90699264,2790.2,2789.6,1.749625]
[1763947440605,0.6544,2789.7,2789.1,1.749625]
[1763947440980,1.1051,2789.7,2789.0,0.001]
[1763947441314,0.4507,2789.6,2789.0,0.001]
[1763947441883,0.1888,2789.9,2789.0,0.001]
[1763947442228,0.1888,2790.2,2789.1,0.1]
[1763947442430,0.4507,2790.4,2789.2,0.03585257]
[1763947442630,0.03575259,2790.3,2789.0,0.001]
[1763947442829,0.03575259,2790.3,2789.1,0.47775532]
[1763947443029,0.4507,2790.2,2789.0,0.4768]
[1763947443332,0.37218889,2790.7,2789.1,4.77655316]
[1763947443625,0.4507,2790.6,2789.3,0.1]
[1763947443784,0.03575259,2790.5,2789.0,0.001]
[1763947444209,0.4507,2790.4,2789.0,0.001]
[1763947445001,0.4507,2790.4,2789.1,0.5758]
[1763947445695,0.18748889,2790.7,2789.2,4.77655316]
[1763947445903,0.4507,2790.7,2789.3,0.52523532]
[1763947446220,2.33949959,2790.6,2789.3,1.00103532]
[1763947446427,0.4507,2790.5,2789.4,0.4758]
[1763947447233,0.37626061,2790.9,2789.5,0.03584871]
[1763947447413,0.37626061,2790.9,2789.4,0.4758]
[1763947447414,0.1888,2790.9,2789.7,4.87655316]
[1763947447608,0.1888,2790.9,2789.8,0.48765532]
[1763947447822,0.52545259,2790.8,2789.8,0.48765532]
[1763947448036,2.278396,2790.7,2789.3,0.4881]
[1763947448207,0.03575259,2790.6,2789.3,0.4881]
[1763947448413,0.4897,2790.6,2789.3,0.4881]
[1763947448814,0.03575259,2790.5,2789.3,0.4881]
[1763947449218,0.4897,2790.4,2789.3,0.4881]
[1763947449639,0.03575259,2790.3,2789.0,0.001]
[1763947449940,0.03575259,2790.3,2789.0,0.4891]
[1763947450103,0.4897,2790.2,2789.0,0.4891]
[1763947450415,3.06299264,2790.1,2789.0,0.001]
[1763947450615,1.2622619,2790.0,2789.0,0.001]
[1763947450837,0.84496926,2790.0,2789.0,0.001]
[1763947451024,0.1871,2789.9,2789.0,0.001]
[1763947451349,0.6768,2789.9,2789.0,0.001]
[1763947451915,0.1871,2789.9,2789.1,0.4881]
[1763947452440,0.03575259,2789.8,2789.0,0.001]
[1763947452810,0.4897,2789.8,2789.0,0.001]
[1763947453017,0.03575259,2789.7,2789.0,0.001]
[1763947453413,0.52545259,2789.7,2789.0,0.001]
[1763947453825,0.1871,2789.9,2789.0,0.001]
[1763947454351,0.03575259,2789.8,2789.0,0.4955]
[1763947454572,0.4911,2789.1,2789.0,0.001]
[1763947454850,5.76512687,2789.1,2789.0,0.001]
[1763947455052,2.78513656,2789.1,2789.0,0.001]
[1763947455224,2.20862387,2789.1,2789.0,0.001]
[1763947455640,1.87659264,2789.1,2789.0,0.001]
[1763947455878,1.39809264,2789.1,2789.0,0.001]
[1763947456026,0.90699264,2789.1,2789.0,0.001]
[1763947456352,0.9696,2789.1,2789.0,0.001]
[1763947457237,0.4911,2789.1,2789.0,0.001]
[1763947457431,0.4785,2789.4,2789.0,0.001]
[1763947457631,0.33269353,2789.3,2789.0,0.001]
[1763947457868,0.33269353,2789.6,2789.0,0.001]
[1763947458254,0.4785,2789.7,2789.0,0.001]
[1763947458255,0.33269353,2789.5,2789.0,0.001]
[1763947458472,0.33269353,2789.4,2789.0,0.001]
[1763947458782,0.33269353,2789.6,2789.1,0.1829]
[1763947458948,0.36844612,2789.5,2789.0,0.001]
[1763947459134,0.1871,2789.9,2789.0,0.001]
[1763947459135,0.33269353,2789.6,2789.0,0.001]
[1763947459336,0.33269353,2789.8,2789.0,0.001]
[1763947459583,0.33269353,2789.7,2789.0,0.001]
[1763947459891,0.4911,2789.1,2789.0,0.001]
[1763947460092,0.82379353,2789.1,2789.0,0.001]
[1763947460859,0.33269353,2789.1,2789.0,0.001]
[1763947461076,0.33269353,2789.3,2789.0,0.001]
[1763947461284,0.4911,2789.1,2789.0,0.001]
[1763947461685,1.30229353,2789.1,2789.0,0.001]
[1763947462470,0.82379353,2789.1,2789.0,0.001]
[1763947463698,0.33269353,2789.1,2789.0,0.001]
[1763947464002,0.33269353,2789.3,2789.0,0.001]
[1763947464202,0.33269353,2789.6,2789.0,0.001]
[1763947464384,0.33269353,2789.5,2789.0,0.001]
[1763947464698,0.4911,2789.1,2789.0,0.001]
[1763947464852,0.82379009,2789.1,2789.0,0.001]
[1763947465058,0.33269009,2789.1,2789.0,0.001]
[1763947465272,3.06299264,2789.5,2789.0,0.001]
[1763947465469,1.627101,2789.4,2789.0,0.001]
[1763947465671,0.33269009,2789.3,2789.0,0.001]
[1763947466293,0.33269009,2789.6,2789.2,0.4909]
[1763947466508,0.03575259,2789.6,2789.2,0.4909]
[1763947466651,0.36844268,2789.6,2789.2,0.4909]
[1763947466852,0.03575259,2789.6,2789.0,0.001]
[1763947467058,0.36844268,2789.6,2789.0,0.001]
[1763947467267,0.03575259,2789.6,2789.0,0.001]
[1763947467473,0.36844268,2789.6,2789.0,0.001]
[1763947467704,0.03575259,2789.6,2789.0,0.001]
[1763947467897,0.36844268,2789.6,2789.0,0.001]
[1763947468202,0.03575259,2789.6,2789.0,0.001]
[1763947468405,0.36844268,2789.6,2789.0,0.001]
[1763947468605,0.33269009,2789.7,2789.5,0.4909]
[1763947468811,0.4785,2790.0,2789.2,1.749625]
[1763947469102,0.33269009,2789.9,2789.2,1.749625]
[1763947469611,0.33269009,2790.1,2789.8,0.4909]
[1763947469769,0.33269009,2790.5,2789.3,2.344125]
[1763947470099,0.81119009,2790.8,2789.4,1.20656782]
[1763947470305,0.33269009,2790.7,2789.6,0.1]
[1763947470605,0.33269009,2790.7,2789.7,0.4945]
[1763947470897,0.33269009,2790.6,2789.7,0.4945]
[1763947471105,0.33269009,2790.8,2789.8,1.749625]
[1763947471256,0.33269009,2791.2,2790.5,0.4909]
[1763947471458,0.33269009,2791.3,2790.7,0.4909]
[1763947471658,0.33269009,2791.3,2790.1,0.1]
[1763947471903,0.81119009,2791.3,2790.1,0.6529]
[1763947472192,0.33269009,2791.2,2790.1,0.6529]
[1763947472360,0.81119009,2791.2,2790.1,0.97335928]
[1763947472554,0.33269009,2791.1,2790.2,0.4945]
[1763947474303,0.4785,2791.2,2790.2,0.4945]
[1763947475771,0.4785,2791.2,2790.3,1.749625]
[1763947475997,0.002,2791.6,2791.1,0.5493]
[1763947476980,0.4798,2791.2,2790.5,1.749625]
[1763947477280,0.4798,2791.2,2790.6,1.749625]
[1763947477675,0.466,2791.5,2790.6,1.749625]
[1763947477877,0.466,2791.5,2790.6,1.9725475]
[1763947478108,0.466,2791.5,2790.6,1.749625]
[1763947478788,0.466,2791.5,2790.6,2.229225]
[1763947478993,0.002,2791.6,2791.4,0.493]
[1763947479192,0.002,2791.6,2790.7,2.229225]
[1763947479193,0.002,2791.6,2790.8,1.749625]
[1763947479424,0.002,2791.6,2790.9,2.0725475]
[1763947479581,0.002,2791.6,2790.9,2.5521475]
[1763947479780,0.002,2791.6,2791.0,0.4796]
[1763947479979,0.002,2791.6,2791.5,0.5514]
[1763947480454,0.002,2791.6,2791.5,1.031]
[1763947480710,0.002,2791.6,2791.5,0.5514]
[1763947481016,0.002,2791.6,2791.5,1.031]
[1763947482678,0.002,2791.6,2791.5,1.131]
[1763947483429,0.002,2792.9,2791.9,13.430782]
[1763947483726,0.002,2793.0,2792.8,5.26955316]
[1763947484025,0.002,2793.0,2792.9,0.493]
[1763947484232,0.002,2793.0,2792.9,0.9726]
[1763947484394,0.002,2793.0,2792.9,1.0726]
[1763947485096,0.002,2793.3,2792.9,1.3016]
[1763947485294,0.002,2793.3,2793.0,1.58041532]
[1763947486205,0.002,2793.3,2793.0,1.68041532]
[1763947486640,0.002,2793.3,2793.1,0.1]
[1763947486929,0.002,2793.3,2793.1,1.229]
[1763947487130,0.002,2793.3,2793.1,1.129]
[1763947487335,0.002,2793.3,2793.2,1.0726]
[1763947487505,0.002,2793.3,2793.2,1.61431399]
[1763947487706,0.002,2793.6,2793.2,1.61431399]
[1763947487913,0.002,2793.6,2793.4,0.5773]
[1763947488114,0.002,2793.6,2793.4,0.4773]
[1763947488432,0.002,2793.6,2793.1,0.6474]
[1763947488631,0.002,2793.6,2793.1,0.3854]
[1763947489032,0.002,2793.6,2793.4,0.4773]
[1763947490339,0.9444,2793.5,2792.5,0.591]
[1763947490503,0.2674,2793.2,2792.5,0.2340625]
[1763947490707,0.2674,2793.2,2792.3,0.591]
[1763947491004,0.2674,2793.2,2792.1,0.1829]
[1763947491203,0.4699,2793.1,2792.1,0.1829]
[1763947491403,0.002,2793.5,2792.1,0.7739]
[1763947491636,0.4719,2793.5,2792.4,0.1]
[1763947491836,0.4719,2793.5,2792.3,0.1]
[1763947492735,0.4719,2793.5,2792.6,0.1]
[1763947493348,0.4719,2793.5,2792.1,0.1829]
[1763947493727,0.4719,2793.5,2792.2,0.1]
[1763947495045,0.4719,2793.5,2792.5,0.1]
[1763947495251,0.4719,2793.5,2792.5,0.1358102]
[1763947495448,0.4719,2793.5,2792.5,0.6268102]
[1763947495752,0.4719,2793.5,2792.5,0.591]
[1763947496124,0.4719,2793.5,2792.6,8.219625]
[1763947496125,0.002,2793.5,2792.6,8.219625]
[1763947496331,0.002,2793.5,2792.9,0.1]
[1763947497323,0.002,2793.5,2793.0,1.749625]
[1763947497542,0.002,2793.5,2793.4,0.4773]
[1763947497718,0.002,2793.5,2793.4,2.226925]
[1763947497923,0.002,2793.5,2793.4,2.4987175]
[1763947500842,0.4745,2793.5,2793.4,1.749625]
[1763947501030,0.9444,2793.5,2793.4,1.749625]
[1763947501231,0.002,2793.5,2793.4,1.749625]
[1763947501431,0.002,2793.5,2793.4,2.226925]
[1763947501636,0.4745,2793.5,2793.4,1.749625]
[1763947501963,0.002,2793.5,2793.4,1.749625]
[1763947502257,0.9444,2793.5,2793.4,1.749625]
[1763947502756,0.9444,2793.5,2793.0,1.749625]
[1763947503152,0.4699,2793.4,2793.0,1.749625]
[1763947503857,0.4725,2793.1,2793.0,1.749625]
[1763947504354,0.4725,2793.1,2792.4,1.749625]
[1763947504560,0.4699,2793.0,2792.5,1.9736875]
[1763947504735,0.4699,2793.0,2792.5,1.749625]
[1763947504934,0.4699,2793.0,2792.0,6.47]
[1763947504935,0.4725,2792.6,2791.5,0.0584]
[1763947505338,0.4699,2792.5,2791.3,0.0584]
[1763947505922,0.4699,2792.5,2791.1,0.0584]
[1763947506124,0.4699,2792.5,2791.1,0.1584]
[1763947507543,0.33190354,2792.4,2791.1,0.1584]
[1763947508088,0.1837,2792.9,2791.4,0.1]
[1763947508089,0.4567,2792.3,2791.4,0.1]
[1763947508288,0.4567,2792.3,2791.5,0.03582303]
[1763947508590,0.4567,2792.6,2791.6,0.03582175]
[1763947508887,0.4567,2792.6,2791.5,0.13582303]
[1763947509091,0.4567,2792.6,2791.5,0.03582303]
[1763947509270,0.4567,2792.6,2791.6,0.1]
[1763947509466,0.33222382,2792.8,2791.7,0.03582046]
[1763947509672,0.33222382,2792.8,2791.9,0.1]
[1763947509673,0.4567,2792.8,2791.9,0.1]
[1763947510510,0.4567,2792.8,2791.5,0.465]
[1763947510662,0.4567,2792.8,2791.2,0.1]
[1763947511082,0.78927887,2792.8,2791.6,0.1]
[1763947511595,0.4567,2792.7,2791.6,0.1]
[1763947511820,0.4567,2792.7,2791.3,0.465]
[1763947511974,0.4567,2792.7,2791.4,0.1]
[1763947512466,0.4567,2792.7,2791.4,0.565]
[1763947512666,0.4567,2792.7,2791.5,1.749625]
[1763947512860,0.1837,2792.9,2791.7,0.1]
[1763947513168,0.51638605,2792.9,2791.9,0.1]
[1763947513370,0.6404,2792.9,2791.9,0.1]
[1763947513598,0.4567,2793.3,2792.0,1.749625]
[1763947513792,0.4567,2793.3,2792.2,0.1]
[1763947513998,0.4567,2793.3,2792.3,0.7146525]
[1763947514200,0.4567,2793.3,2792.4,1.749625]
[1763947514689,0.002,2793.5,2792.7,0.1]
[1763947514895,0.002,2793.5,2792.6,0.1]
[1763947515095,0.002,2793.5,2792.8,0.1]
[1763947515406,0.002,2793.5,2792.9,1.749625]
[1763947515586,0.002,2793.5,2793.0,2.0345875]
[1763947515793,0.002,2793.5,2793.4,0.471]
[1763947515994,0.002,2793.5,2793.1,2.214625]
[1763947516197,0.4587,2793.5,2793.1,1.749625]
[1763947516800,0.4611,2793.2,2793.1,1.749625]
[1763947517005,0.9178,2793.2,2792.4,1.749625]
[1763947517201,0.002,2793.5,2792.5,0.29992775]
[1763947517418,0.4567,2793.4,2792.5,0.29992775]
[1763947517777,0.4567,2793.4,2792.5,0.19992775]
[1763947518682,0.03575259,2793.3,2792.4,1.749625]
[1763947518876,0.4567,2793.4,2792.4,1.749625]
[1763947519108,0.4567,2793.3,2792.4,1.749625]
[1763947519819,0.4567,2793.3,2792.1,0.1819]
[1763947520020,0.4567,2793.3,2792.2,0.60081405]
[1763947520314,0.33477936,2793.5,2792.1,2.1246775]
[1763947520315,0.33277936,2793.4,2792.5,0.1]
[1763947520617,0.002,2793.5,2792.5,0.1]
[1763947520807,0.4587,2793.5,2792.5,0.1]
[1763947521404,0.4587,2793.5,2792.5,0.565]
[1763947521713,0.4587,2793.5,2792.3,0.03581277]
[1763947521714,0.4587,2793.5,2792.4,0.1]
[1763947521916,0.002,2793.5,2792.5,8.3554352]
[1763947522120,0.002,2793.5,2792.9,0.1]
[1763947522319,0.002,2793.5,2793.4,0.471]
[1763947522521,0.002,2793.5,2793.4,0.571]
[1763947522721,0.002,2793.5,2793.4,1.036]
[1763947523292,0.002,2793.5,2793.2,1.749625]
[1763947523493,0.002,2793.5,2793.4,0.471]
[1763947524102,0.002,2793.5,2793.4,1.036]
[1763947525323,0.002,2793.5,2793.4,0.471]
[1763947526200,0.002,2793.5,2793.4,1.036]
[1763947528092,0.002,2793.5,2793.4,0.471]
[1763947528415,0.002,2793.5,2793.3,0.1849625]
[1763947528599,0.002,2793.5,2793.4,0.571]
[1763947528800,0.002,2793.5,2793.4,0.471]
[1763947529629,0.002,2793.5,2793.1,0.329]
[1763947530342,0.002,2793.5,2793.4,0.571]
[1763947530729,0.002,2793.5,2793.4,1.036]
[1763947530903,0.002,2793.5,2793.4,1.07179866]
[1763947531101,0.002,2793.5,2793.4,0.471]
[1763947532204,0.002,2793.8,2793.7,1.745625]
[1763947532609,0.002,2793.8,2793.7,3.0381875]
[1763947532813,0.002,2793.8,2793.7,2.5671875]
[1763947533336,0.002,2793.8,2793.7,3.63898232]
[1763947533530,0.002,2793.8,2793.7,3.1381875]
[1763947533898,0.002,2793.8,2793.7,3.63898232]
[1763947534303,0.002,2793.8,2793.7,10.00898232]
[1763947534603,0.002,2793.8,2793.7,10.0731875]
[1763947534799,0.002,2793.8,2793.7,9.6081875]
[1763947535046,0.002,2793.8,2793.7,1.745625]
[1763947535907,0.4631,2793.8,2793.7,1.745625]
[1763947536748,0.9431,2793.8,2793.7,1.745625]
[1763947537204,0.4631,2793.8,2793.7,1.745625]
[1763947537410,0.9431,2793.8,2793.7,1.745625]
[1763947537735,0.002,2793.8,2793.7,1.745625]
[1763947538404,0.476,2793.8,2793.7,1.745625]
[1763947539236,0.002,2793.8,2793.7,1.745625]
[1763947540514,0.956,2793.8,2793.7,1.745625]
[1763947540815,0.476,2793.8,2793.7,1.745625]
[1763947541935,0.956,2793.8,2793.7,1.745625]
[1763947542233,0.002,2793.8,2793.7,1.745625]
[1763947542806,0.002,2793.8,2793.7,2.5672875]
[1763947543523,0.002,2793.8,2793.7,3.5013875]
[1763947543723,0.002,2793.8,2793.7,3.6013875]
[1763947544111,0.002,2794.1,2794.0,1.739625]
[1763947544412,0.002,2794.1,2794.0,2.316825]
[1763947544612,0.002,2794.1,2794.0,2.59777673]
[1763947544815,0.002,2794.1,2794.0,3.05467673]
[1763947545625,0.002,2794.1,2794.0,2.95467673]
[1763947545828,0.002,2794.1,2794.0,3.05467673]
[1763947546028,0.002,2794.1,2794.0,9.52467673]
[1763947546415,0.002,2794.1,2794.0,13.10377479]
[1763947546818,0.002,2794.1,2794.0,9.52467673]
[1763947547144,0.002,2794.1,2794.0,9.75367673]
[1763947548123,0.002,2794.1,2794.0,6.86277479]
[1763947548336,0.002,2794.6,2794.4,3.65141]
[1763947548659,0.002,2794.6,2794.3,0.4772]
[1763947548660,0.002,2794.6,2794.5,1.675961]
[1763947548949,0.002,2794.6,2794.5,1.2631]
[1763947549647,0.002,2794.6,2794.5,2.17009264]